fUST/lending_fUST_20251203
["ID","MTS","AMOUNT","RATE_DAILY","PERIOD"]
[395971956,1764742260384,-500.0,0.00035608,120]
[395971958,1764742260395,-500.0,0.00035608,120]
[395971960,1764742260407,-500.0,0.00035608,120]
[395971963,1764742260421,-500.0,0.00035608,120]
[395971965,1764742260433,-500.0,0.00035608,120]
[395971967,1764742260444,-500.0,0.00035608,120]
[395971969,1764742260456,-500.0,0.00035608,120]
[395971972,1764742260467,-500.0,0.00035608,120]
[395971974,1764742260477,-500.0,0.00035608,120]
[395971976,1764742260493,-500.0,0.00035608,120]
[395971979,1764742260505,-500.0,0.00035608,120]
[395971981,1764742260516,-500.0,0.00035608,120]
[395971983,1764742260529,-500.0,0.00035608,120]
[395971985,1764742260541,-500.0,0.00035608,120]
[395971988,1764742260553,-500.0,0.00035608,120]
[395971990,1764742260565,-500.0,0.00035608,120]
[395971992,1764742260576,-500.0,0.00035608,120]
[395971994,1764742260589,-500.0,0.00035608,120]
[395971997,1764742260600,-500.0,0.00035608,120]
[395971999,1764742260613,-500.0,0.00035608,120]
[395972001,1764742260627,-500.0,0.00035608,120]
[395972004,1764742260639,-500.0,0.00035608,120]
[395972006,1764742260649,-264.68,0.00035608,120]
[395972008,1764742260660,-500.0,0.00035608,120]
[395972010,1764742260675,-500.0,0.00035608,120]
[395972012,1764742260688,-500.0,0.00035608,120]
[395972014,1764742260700,-500.0,0.00035608,120]
[395972017,1764742260713,-500.0,0.00035608,120]
[395972019,1764742260726,-500.0,0.00035608,120]
[395972022,1764742260739,-500.0,0.00035608,120]
[395972024,1764742260751,-500.0,0.00035616,10]
[395972026,1764742260762,-500.0,0.00035616,10]
[395972028,1764742260773,-500.0,0.00035616,10]
[395972030,1764742260785,-500.0,0.00035616,10]
[395972033,1764742260799,-500.0,0.00035616,10]
[395972035,1764742260812,-500.0,0.00035616,10]
[395972037,1764742260822,-406.72550058,0.00035616,10]
[395972039,1764742260833,-1000.0,0.00035616,120]
[395972041,1764742260844,-500.0,0.00035616,120]
[395972043,1764742260855,-1000.0,0.00035616,5]
[395972046,1764742260868,-1150.0,0.00035616,5]
[395972048,1764742260881,-1000.0,0.00035643,120]
[395972050,1764742260893,-1093.62060776,0.0003566,120]
[395972052,1764742260906,-1000.0,0.00035671,120]
[395972054,1764742260918,-2232.02,0.00035695,60]
[395972057,1764742260931,-1000.0,0.00035698,120]
[395972059,1764742260943,-313.04465195,0.000357,60]
[395972061,1764742260955,-1000.0,0.00035726,120]
[395972064,1764742260968,-1000.0,0.00035753,120]
[395972066,1764742260986,-1000.0,0.0003578,120]
[395972068,1764742261004,-2232.02,0.00035795,60]
[395972071,1764742261017,-262.865438,0.000358,120]
[395972073,1764742261033,-1000.0,0.00035808,120]
[395972075,1764742261045,-1000.0,0.00035835,120]
[395972077,1764742261057,-1000.0,0.00035863,120]
[395972080,1764742261068,-1255.85,0.00035878,56]
[395972082,1764742261080,-511.66999981,0.0003588,120]
[395972084,1764742261092,-1000.0,0.0003589,120]
[395972086,1764742261104,-2232.02,0.00035895,60]
[395972089,1764742261115,-5001.2844392,0.000359,120]
[395972091,1764742261127,-1000.0,0.00035917,120]
[395972093,1764742261138,-1000.0,0.00035945,120]
[395972095,1764742261149,-1000.0,0.00035972,120]
[395972097,1764742261161,-4233.30635485,0.00035973,2]
[395972100,1764742261174,-2232.02,0.00035995,60]
[395972102,1764742261186,-501.20436604,0.00036,60]
[395972104,1764742261199,-366.0,0.00036,60]
[395972107,1764742261211,-500.0,0.00036,120]
[395972109,1764742261223,-3300.97,0.00036,7]
[395972111,1764742261235,-1000.0,0.00036,120]
[395972113,1764742261246,-1000.0,0.00036027,120]
[395972115,1764742261256,-215.0,0.00036027,84]
[395972117,1764742261268,-200.0,0.0003603,120]
[395972120,1764742261279,-200.0,0.00036033,120]
[395972122,1764742261291,-1000.0,0.00036054,120]
[395972124,1764742261303,-3000.0,0.0003606,14]
[395972127,1764742261318,-1000.0,0.00036082,120]
[395972129,1764742261329,-2232.02,0.00036095,60]
[395972131,1764742261340,-500.0,0.000361,30]
[395972133,1764742261351,-1000.0,0.00036109,120]
[395972136,1764742261363,-1000.0,0.00036136,120]
[395972138,1764742261374,-414.0,0.00036138,2]
[395972140,1764742261386,-800.0,0.00036162,7]
[395972142,1764742261399,-1000.0,0.00036164,120]
[395972145,1764742261410,-1730.62,0.00036164,120]
[395972146,1764742261422,-603.6305341,0.00036164,30]
[395972147,1764742261433,-1000.0,0.00036191,120]
[395972148,1764742261444,-2232.02,0.00036195,60]
[395972149,1764742261455,-205.890653,0.000362,33]
[395972150,1764742261467,-204.69847914,0.0003621,2]
[395972152,1764742261479,-1000.0,0.00036219,120]
[395972154,1764742261491,-725.0,0.00036237,10]
[395972156,1764742261502,-150.0,0.00036237,2]
[395972159,1764742261514,-300.0,0.00036237,2]
[395972161,1764742261526,-346.62942612,0.00036237,2]
[395972163,1764742261538,-260.52310187,0.00036237,2]
[395972165,1764742261549,-329.89763477,0.00036237,2]
[395972167,1764742261560,-294.42576291,0.00036237,2]
[395972170,1764742261572,-158.00427063,0.00036237,2]
[395972172,1764742261583,-159.01241702,0.00036237,2]
[395972174,1764742261594,-511.98718837,0.00036237,2]
[395972176,1764742261606,-180.85380236,0.00036237,2]
[395972178,1764742261618,-471.91107269,0.00036237,2]
[395972180,1764742261628,-190.77619291,0.00036237,2]
[395972182,1764742261639,-204.69491451,0.00036237,2]
[395972185,1764742261650,-199.83847838,0.00036237,2]
[395972187,1764742261662,-388.11866657,0.00036237,2]
[395972189,1764742261675,-203.05793079,0.00036237,2]
[395972191,1764742261687,-367.73088049,0.00036237,2]
[395972194,1764742261698,-167.98607865,0.00036237,2]
[395972196,1764742261709,-151.61912836,0.00036237,2]
[395972198,1764742261720,-260.73495862,0.00036237,2]
[395972200,1764742261731,-150.5020855,0.00036237,2]
[395972202,1764742261742,-326.41981417,0.00036237,2]
[395972204,1764742261753,-164.699999,0.00036237,5]
[395972207,1764742261764,-817.06066781,0.00036237,2]
[395972209,1764742261778,-2110.33052361,0.00036237,2]
[395972211,1764742261789,-642.87399318,0.00036237,2]
[395972214,1764742261799,-1373.87834487,0.00036237,2]
[395972216,1764742261810,-708.76043307,0.00036237,2]
[395972218,1764742261820,-1732.40201385,0.00036237,2]
[395972220,1764742261830,-2094.74283765,0.00036237,2]
[395972222,1764742261841,-1408.79455997,0.00036237,2]
[395972224,1764742261851,-656.72284329,0.00036237,2]
[395972226,1764742261862,-618.0,0.00036237,2]
[395972229,1764742261872,-1674.55767145,0.00036237,2]
[395972231,1764742261883,-2000.0,0.00036237,15]
[395972233,1764742261893,-234.12910517,0.00036237,2]
[395972235,1764742261904,-92093.42111434,0.00036237,2]
[395972237,1764742261914,-22864.87738149,0.00036237,2]
[395972240,1764742261925,-3918.38444869,0.00036237,2]
[395972242,1764742261935,-52180.17221552,0.00036237,2]
[395972244,1764742261945,-21764.72235844,0.00036237,2]
[395972248,1764742261969,-6355.09949682,0.00036237,2]
[395972251,1764742261986,-7549.19844458,0.00036237,2]
[395972253,1764742261999,-30715.71322143,0.00036237,2]
[395972255,1764742262012,-1205.43755383,0.00036237,2]
[395972258,1764742262025,-5948.30078957,0.00036237,2]
[395972260,1764742262038,-10776.37849272,0.00036237,2]
[395972263,1764742262050,-2920.0,0.00036237,2]
[395972265,1764742262063,-3174.89176375,0.00036237,2]
[395972267,1764742262075,-178691.44070986,0.00036237,2]
[395972270,1764742262088,-3799.15785988,0.00036237,2]
[395972272,1764742262100,-5539.20865603,0.00036237,7]
[395972274,1764742262113,-4070.09812012,0.00036237,7]
[395972276,1764742262124,-5000.0,0.00036237,7]
[395972279,1764742262136,-2543.98371901,0.00036237,7]
[395972281,1764742262148,-2040.95850641,0.00036237,2]
[395972283,1764742262160,-1950.62605249,0.00036237,5]
[395972285,1764742262172,-47164.53196046,0.00036237,2]
[395972288,1764742262183,-1703.44632122,0.00036237,2]
[395972290,1764742262195,-377.89805894,0.00036237,2]
[395972292,1764742262207,-1562.8227168,0.00036237,14]
[395972294,1764742262219,-13878.74864349,0.00036237,2]
[395972297,1764742262230,-1186.80790311,0.00036237,2]
[395972299,1764742262241,-25694.0,0.00036237,10]
[395972301,1764742262252,-328.13831064,0.00036237,2]
[395972303,1764742262264,-12842.30383653,0.00036237,2]
[395972305,1764742262276,-342.92015504,0.00036237,16]
[395972308,1764742262288,-3865.47303396,0.00036237,7]
[395972310,1764742262299,-243.4663836,0.00036237,10]
[395972312,1764742262310,-197.43101006,0.00036237,12]
[395972314,1764742262321,-3047.12611214,0.00036237,7]
[395972316,1764742262331,-500.0,0.00036237,7]
[395972318,1764742262341,-1023.24067766,0.00036237,7]
[395972321,1764742262352,-200.0,0.00036237,10]
[395972323,1764742262362,-498.0,0.00036237,7]
[395972325,1764742262373,-155.9354109,0.00036237,7]
[395972327,1764742262384,-845.62171689,0.00036237,7]
[395972329,1764742262395,-178.32491108,0.00036237,7]
[395972331,1764742262405,-158.0,0.00036237,10]
[395972333,1764742262415,-1017.37396621,0.00036237,7]
[395972336,1764742262426,-173015.17445619,0.00036237,5]
[395972338,1764742262436,-180.88,0.00036237,2]
[395972340,1764742262447,-2736.63928469,0.00036237,14]
[395972342,1764742262457,-457252.60494925,0.00036237,7]
[395972344,1764742262468,-4209.5195185,0.00036237,2]
[395972346,1764742262479,-72488.1251867,0.00036237,7]
[395972348,1764742262489,-312876.54640642,0.00036237,7]
[395972351,1764742262500,-169.3556569,0.00036237,7]
[395972353,1764742262511,-500000.0,0.00036237,15]
[395972355,1764742262522,-150.11761965,0.00036237,3]
[395972357,1764742262533,-1075.0,0.00036237,120]
[395972359,1764742262546,-500.0,0.00036237,120]
[395972361,1764742262557,-500.0,0.00036237,120]
[395972364,1764742262568,-500.0,0.00036237,120]
[395972366,1764742262578,-500.0,0.00036237,120]
[395972368,1764742262589,-500.0,0.00036237,120]
[395972370,1764742262605,-500.0,0.00036237,120]
[395972373,1764742262617,-216.87,0.00036237,120]
[395972375,1764742262629,-1011.05,0.00036237,30]
[395972377,1764742262641,-1040.0,0.00036237,31]
[395972380,1764742262653,-30049.0,0.00036237,20]
[395972382,1764742262667,-3000.0,0.00036237,120]
[395972384,1764742262680,-504.15511758,0.00036237,120]
[395972386,1764742262691,-7683123.55332599,0.00036237,20]
[395972481,1764742263863,-207.240974,0.00025,2]
[395972483,1764742263873,-6478524.96012094,0.00036237,20]
[395972485,1764742263883,-2703.94837171,0.00036237,30]
[395972487,1764742263894,-488.69425841,0.00036237,120]
[395972489,1764742263904,-977.55457087,0.00036237,120]
[395972491,1764742263914,-286.27102804,0.00036237,120]
[395972493,1764742263924,-313.77359891,0.00036237,120]
[395972495,1764742263933,-379.28543763,0.00036237,24]
[395972497,1764742263943,-1895.15990125,0.00036237,60]
[395972499,1764742263952,-920.97842331,0.00036237,30]
[395972501,1764742263962,-1381.87468644,0.00036237,30]
[395972503,1764742263971,-757.46884541,0.00036237,120]
[395972505,1764742263981,-1003.62839527,0.00036237,120]
[395972507,1764742263990,-221.73902047,0.00036237,60]
[395972509,1764742263999,-953.0352126,0.00036237,120]
[395972512,1764742264009,-318.74784247,0.00036237,120]
[395972514,1764742264019,-921.27034207,0.00036237,60]
[395972516,1764742264028,-269.2300556,0.00036237,120]
[395972518,1764742264038,-810.17483641,0.00036237,30]
[395972520,1764742264047,-362.6497248,0.00036237,30]
[395972522,1764742264056,-1246.85833969,0.00036237,60]
[395972524,1764742264066,-240.82074905,0.00036237,120]
[395972526,1764742264075,-208.56912505,0.00036237,30]
[395972528,1764742264083,-517.97383475,0.00036237,30]
[395972530,1764742264093,-251.89621783,0.00036237,120]
[395972532,1764742264102,-375.48997058,0.00036237,30]
[395972534,1764742264113,-826.71686124,0.00036237,120]
[395972535,1764742264122,-790.87833226,0.00036237,31]
[395972536,1764742264132,-462.76594188,0.00036237,30]
[395972538,1764742264141,-240.05221444,0.00036237,90]
[395972540,1764742264151,-1050.0236634,0.00036237,120]
[395972542,1764742264160,-576.87783689,0.00036237,120]
[395972544,1764742264170,-702.10451946,0.00036237,120]
[395972546,1764742264179,-673.59747481,0.00036237,120]
[395972548,1764742264189,-263.65476015,0.00036237,120]
[395972550,1764742264199,-1048.37326728,0.00036237,120]
[395972552,1764742264209,-367.17993225,0.00036237,30]
[395972554,1764742264218,-981.12340156,0.00036237,120]
[395972557,1764742264229,-1940.71976465,0.00036237,120]
[395972559,1764742264239,-1991.21971496,0.00036237,120]
[395972561,1764742264248,-1223.15358293,0.00036237,30]
[395972563,1764742264258,-1149.65345064,0.00036237,30]
[395972565,1764742264267,-443.40448083,0.00036237,120]
[395972567,1764742264276,-1725.5627667,0.00036237,120]
[395972569,1764742264285,-224.57155421,0.00036237,120]
[395972571,1764742264295,-329.49517663,0.00036237,120]
[395972573,1764742264305,-1886.67,0.00036237,2]
[395972575,1764742264314,-566.48237871,0.00036237,120]
[395972577,1764742264324,-322.56465552,0.00036237,60]
[395972579,1764742264334,-566.74000909,0.00036237,120]
[395972581,1764742264343,-204.59732554,0.00036237,120]
[395972583,1764742264353,-2316.87395544,0.00036237,60]
[395972585,1764742264363,-382.29883548,0.00036237,60]
[395972587,1764742264372,-1965.11664295,0.00036237,30]
[395972589,1764742264382,-168.97878063,0.00036237,120]
[395972591,1764742264391,-3291.39550232,0.00036237,120]
[395972593,1764742264401,-552.38080703,0.00036237,120]
[395972595,1764742264410,-550.69774724,0.00036237,30]
[395972597,1764742264420,-292.83360225,0.00036237,30]
[395972599,1764742264430,-626.08974757,0.00036237,120]
[395972601,1764742264439,-193.61186572,0.00036237,120]
[395972606,1764742264471,-31.88700054,0.00036237,120]
[395972607,1764742264480,-300.0,0.00036237,30]
[395972610,1764742264490,-41.03724976,0.00036237,120]
[395974988,1764742440954,5000.0,0.000211,99]
[395975000,1764742463285,1050.70102436,0.000211,99]
[395975408,1764742862665,250.0,0.0002,30]
[395978367,1764743260979,170.20652996,0.000211,99]
[395978369,1764743262445,170.20652996,0.000211,99]
[395978370,1764743263148,170.20652996,0.000211,99]
[395978371,1764743263572,170.20652996,0.000211,99]
[395978372,1764743264235,170.20652996,0.000211,99]
[395978481,1764743432352,-257.0,0.00012029,2]
[395978482,1764743432362,-65.0,0.00012029,2]
[395978484,1764743432373,-183.0,0.00012029,2]
[395978486,1764743432383,-150.0,0.0001203,2]
[395978488,1764743432394,-300.0,0.00012273,2]
[395978490,1764743432404,-159.0,0.00012273,2]
[395978492,1764743432413,-1200.0,0.00012273,2]
[395978494,1764743432422,-26738.86415492,0.00012274,2]
[395978496,1764743432433,-300.0,0.00012274,2]
[395978498,1764743432442,-300.0,0.00012274,2]
[395978500,1764743432452,-300.0,0.00012274,2]
[395978502,1764743432461,-300.0,0.00012274,2]
[395978504,1764743432470,-300.0,0.00012274,2]
[395978506,1764743432480,-300.0,0.00012274,2]
[395978508,1764743432490,-300.0,0.00012274,2]
[395978511,1764743432500,-300.0,0.00012274,2]
[395978513,1764743432511,-300.0,0.00012274,2]
[395978514,1764743432521,-300.0,0.00012274,2]
[395978516,1764743432531,-300.0,0.00012274,2]
[395978519,1764743432544,-300.0,0.00012274,2]
[395978520,1764743432553,-300.0,0.00012274,2]
[395978523,1764743432563,-300.0,0.00012274,2]
[395978524,1764743432572,-300.0,0.00012274,2]
[395978527,1764743432581,-600.0,0.00012274,2]
[395978529,1764743432591,-420.0,0.00013469,2]
[395978531,1764743432603,-720.0,0.00013501,2]
[395978533,1764743432612,-500.0,0.00013699,2]
[395978534,1764743432622,-500.0,0.00013699,2]
[395978537,1764743432632,-500.0,0.00013699,2]
[395978538,1764743432643,-177.0,0.0001403,2]
[395978540,1764743432652,-501.01164772,0.00014247,2]
[395978542,1764743432662,-273.6354666,0.00014247,2]
[395978544,1764743432671,-1000.0,0.00014247,2]
[395978546,1764743432680,-346.97492544,0.00014578,2]
[395978548,1764743432689,-587.0,0.00014782,2]
[395978551,1764743432699,-706.01852193,0.00014795,2]
[395978553,1764743432710,-1359.0,0.00014813,2]
[395978555,1764743432720,-414.0,0.00014813,2]
[395978557,1764743432730,-864.0,0.00014851,2]
[395978559,1764743432739,-204.0,0.0001603,2]
[395978561,1764743432749,-558.0,0.00016223,2]
[395978562,1764743432759,-1000.0,0.00016337,2]
[395978565,1764743432768,-327.87682595,0.00017616,3]
[395978567,1764743432777,-414.0,0.00017813,2]
[395978569,1764743432787,-1000.0,0.0001797,2]
[395978571,1764743432796,-244.0,0.0001797,2]
[395978573,1764743432805,-231.0,0.0001803,2]
[395978575,1764743432814,-179.92802879,0.00019137,2]
[395978577,1764743432823,-366.78,0.000192,2]
[395978579,1764743432833,-1000.0,0.00019767,10]
[395978581,1764743432842,-492.0,0.00019767,10]
[395978583,1764743432851,-151.4697106,0.0002,2]
[395978585,1764743432860,-258.0,0.0002003,2]
[395978587,1764743432870,-176.0,0.00020356,3]
[395978589,1764743432879,-250.0,0.000205,10]
[395978591,1764743432889,-250.0,0.000206,10]
[395978593,1764743432899,-162.36947297,0.00020643,2]
[395978595,1764743432908,-250.0,0.000207,10]
[395978597,1764743432917,-250.0,0.000208,10]
[395978599,1764743432927,-414.0,0.00020813,2]
[395978601,1764743432936,-34.2719774,0.000209,10]
[395979161,1764743438904,-215.7280226,0.000209,10]
[395979164,1764743438914,-250.0,0.00021,10]
[395979166,1764743438925,-191.2555604,0.000211,2]
[395979168,1764743438936,-114.09560675,0.000211,2]
[395979170,1764743438946,-310.26026925,0.000211,2]
[395979172,1764743438955,-152.67558357,0.000211,2]
[395979174,1764743438964,-125.37544634,0.000211,10]
[395979177,1764743438990,-219.29405966,0.000211,10]
[395979180,1764743439001,-44.2450801,0.00021744,10]
[395979182,1764743439012,-505.75395028,0.00021744,10]
[395979184,1764743439024,-450.00096962,0.00021744,10]
[395979186,1764743439033,-791.0,0.00021744,10]
[395979188,1764743439043,-310.26026925,0.00021834,17]
[395979190,1764743439053,-2424.11446973,0.0002198,10]
[395979192,1764743439065,-1024.6242914,0.0002198,10]
[395979194,1764743439076,-6323.17223996,0.0002198,10]
[395979196,1764743439087,-3625.98798208,0.0002198,10]
[395979198,1764743439098,-5354.05101683,0.0002198,10]
[395979200,1764743439108,-2476.44165786,0.0002199,10]
[395979344,1764743440492,-454.58,0.0002199,10]
[395979346,1764743440552,-2603.14911891,0.0002199,10]
[395984087,1764743621534,170.20652995,0.000211,99]
[395984182,1764743822313,250.0,0.0002,30]
[395984618,1764744632427,-248.0,0.00011931,2]
[395984619,1764744632437,-500.0,0.00011931,2]
[395984620,1764744632447,-171.19901614,0.00011931,2]
[395984621,1764744632457,-532.15035221,0.00011931,2]
[395984622,1764744632467,-190.16753063,0.00011932,2]
[395984624,1764744632476,-4717.2905089,0.00011932,2]
[395984626,1764744632488,-3599.6683908,0.00011932,2]
[395984702,1764744639215,-4967.68010709,0.00011932,2]
[395984850,1764744640995,-500.0,0.00011932,2]
[395985383,1764744646259,-31600.9195887,0.00011932,2]
[395985385,1764744646268,-633.43776664,0.00011933,2]
[395985387,1764744646277,-300.0,0.00012172,2]
[395985389,1764744646287,-300.0,0.00012172,2]
[395985391,1764744646297,-300.0,0.00012172,2]
[395985393,1764744646307,-300.0,0.00012172,2]
[395985394,1764744646316,-300.0,0.00012172,2]
[395985397,1764744646326,-300.0,0.00012172,2]
[395985398,1764744646335,-300.0,0.00012172,2]
[395985400,1764744646345,-300.0,0.00012172,2]
[395985402,1764744646354,-300.0,0.00012172,2]
[395985404,1764744646364,-300.0,0.00012172,2]
[395985406,1764744646373,-300.0,0.00012172,2]
[395985408,1764744646383,-300.0,0.00012172,2]
[395985411,1764744646392,-300.0,0.00012172,2]
[395985412,1764744646402,-300.0,0.00012172,2]
[395985414,1764744646413,-300.0,0.00012172,2]
[395985416,1764744646422,-600.0,0.00012172,2]
[395985418,1764744646433,-3934.52359918,0.000129,2]
[395985420,1764744646442,-260.42488597,0.00013273,2]
[395985422,1764744646451,-720.0,0.00013389,2]
[395985424,1764744646461,-1232.321439,0.00013699,2]
[395985426,1764744646471,-1000.0,0.00013699,2]
[395985428,1764744646480,-500.0,0.00013699,2]
[395985430,1764744646489,-500.0,0.00013699,2]
[395985432,1764744646499,-306.80709491,0.00013699,2]
[395985434,1764744646509,-224.39768614,0.00013932,2]
[395985436,1764744646519,-500.86252673,0.00014247,2]
[395985438,1764744646528,-1000.0,0.00014247,2]
[395985440,1764744646537,-864.0,0.00014728,2]
[395985442,1764744646547,-501.09837044,0.00014795,2]
[395985444,1764744646557,-258.62784165,0.00015932,2]
[395985446,1764744646566,-6100.49531048,0.00015933,2]
[395985448,1764744646575,-190.0,0.00015945,3]
[395985450,1764744646588,-1000.0,0.00016201,2]
[395985452,1764744646597,-197.0,0.00017041,3]
[395985454,1764744646606,-3934.52359916,0.00017271,2]
[395985456,1764744646615,-1000.0,0.00017821,2]
[395985458,1764744646625,-244.0,0.00017821,2]
[395985460,1764744646635,-292.85799717,0.00017932,2]
[395985462,1764744646645,-346.97492544,0.00018369,2]
[395985463,1764744646656,-199.0,0.00018685,3]
[395985465,1764744646667,-179.91004498,0.00019137,2]
[395985467,1764744646676,-1000.0,0.00019603,10]
[395985469,1764744646685,-492.0,0.00019603,10]
[395985471,1764744646695,-623.52,0.000197,2]
[395985474,1764744646705,-726.61,0.000197,2]
[395985475,1764744646714,-336.43959473,0.00019791,2]
[395985477,1764744646724,-327.08815268,0.00019932,2]
[395985479,1764744646733,-1232.321439,0.00020187,2]
[395985481,1764744646742,-500.0,0.00020278,2]
[395985483,1764744646751,-500.0,0.00020278,2]
[395985485,1764744646760,-386.59225403,0.00020278,2]
[395985487,1764744646770,-500.0,0.00020278,2]
[395985489,1764744646780,-500.0,0.00020278,2]
[395985491,1764744646790,-500.0,0.00020278,2]
[395985493,1764744646799,-500.0,0.00020278,2]
[395985495,1764744646808,-500.0,0.00020278,2]
[395985497,1764744646818,-500.0,0.00020278,2]
[395985499,1764744646828,-500.0,0.00020278,2]
[395985501,1764744646837,-38000.0,0.00020279,3]
[395985503,1764744646846,-346.97492544,0.00020279,3]
[395985505,1764744646857,-32296.11983572,0.00020289,3]
[395985507,1764744646867,-346.97492544,0.00020289,3]
[395985509,1764744646876,-905.33,0.000203,2]
[395985511,1764744646886,-201.0,0.00020329,3]
[395985513,1764744646895,-150.0,0.000205,10]
[395985515,1764744646905,-300.0,0.000209,7]
[395985518,1764744646916,-1000.0,0.00021563,10]
[395985520,1764744646926,-791.0,0.00021563,10]
[395985521,1764744646935,-361.31830819,0.00021932,2]
[395985523,1764744646945,-204.0,0.00021973,6]
[395985525,1764744646954,-1173.0,0.00022,2]
[395985528,1764744646964,-423.836866,0.0002211,15]
[395985530,1764744646973,-310.26026925,0.00022568,32]
[395985532,1764744646982,-3934.52359916,0.00022709,2]
[395985533,1764744646992,-310.26026925,0.00023302,48]
[395985536,1764744647002,-272.0,0.00023468,2]
[395985537,1764744647010,-206.0,0.00023616,10]
[395985539,1764744647019,-305.35116715,0.00023669,56]
[395985541,1764744647028,-341.0,0.00023701,2]
[395985543,1764744647038,-1000.0,0.0002372,10]
[395985545,1764744647047,-1000.0,0.0002372,10]
[395985547,1764744647056,-430.0,0.00023919,2]
[395985549,1764744647065,-395.5484637,0.00023932,2]
[395985551,1764744647075,-100000.0,0.0002399,2]
[395985553,1764744647083,-5479.41556319,0.00024,2]
[395985562,1764744647153,-8697.55062707,0.00024,2]
[395993275,1764744782325,250.0,0.0002,30]
[395993505,1764745742908,250.0,0.0002,30]
[395993630,1764745831813,-487.0,0.00011139,2]
[395993631,1764745831823,-242.0,0.00011252,2]
[395993632,1764745831834,-151.08766047,0.00011482,2]
[395993633,1764745831845,-600.0,0.00012069,2]
[395993634,1764745831856,-300.0,0.00012169,2]
[395993635,1764745831866,-300.0,0.00012169,2]
[395993636,1764745831876,-300.0,0.00012169,2]
[395993637,1764745831887,-300.0,0.00012169,2]
[395993638,1764745831897,-300.0,0.00012169,2]
[395993639,1764745831907,-300.0,0.00012169,2]
[395993640,1764745831917,-300.0,0.00012169,2]
[395993641,1764745831927,-300.0,0.00012169,2]
[395993642,1764745831937,-300.0,0.00012169,2]
[395993643,1764745831947,-300.0,0.00012169,2]
[395993644,1764745831956,-300.0,0.00012169,2]
[395993645,1764745831965,-300.0,0.00012169,2]
[395993646,1764745831975,-300.0,0.00012169,2]
[395993647,1764745831984,-300.0,0.00012169,2]
[395993648,1764745831997,-300.0,0.00012169,2]
[395993649,1764745832007,-720.0,0.00013276,2]
[395993650,1764745832016,-178.28343936,0.00013482,2]
[395993651,1764745832026,-346.97492544,0.00014485,2]
[395993652,1764745832038,-864.0,0.00014603,2]
[395993653,1764745832047,-205.47921824,0.00015482,2]
[395993654,1764745832064,-414.0,0.0001605,2]
[395993655,1764745832077,-1000.0,0.00016064,2]
[395993656,1764745832086,-280.0,0.00016384,3]
[395993657,1764745832096,-232.67499713,0.00017482,2]
[395993658,1764745832106,-712.56105777,0.0001767,2]
[395993659,1764745832162,-287.43894223,0.0001767,2]
[395993660,1764745832172,-244.0,0.0001767,2]
[395993661,1764745832181,-414.0,0.0001905,2]
[395993662,1764745832191,-1000.76623928,0.000191,2]
[395993832,1764745838342,-407.16616751,0.00018909,2]
[395993833,1764745838353,-1458.31101023,0.000191,2]
[395993834,1764745838363,-106.19284508,0.00019123,3]
[395993835,1764745838380,-84.80715492,0.00019123,3]
[395993836,1764745838390,-188.91858088,0.00019137,2]
[395993837,1764745838399,-500.0,0.00019199,2]
[395993838,1764745838409,-500.0,0.00019199,2]
[395993839,1764745838419,-500.0,0.00019199,2]
[395993840,1764745838428,-528.52605835,0.00019199,2]
[395993841,1764745838438,-347.74212033,0.00019199,2]
[395993842,1764745838449,-181.58667829,0.00019199,2]
[395993843,1764745838459,-500.0,0.00019199,2]
[395993844,1764745838469,-500.0,0.00019199,2]
[395993845,1764745838478,-500.0,0.00019199,2]
[395993846,1764745838488,-467.84964779,0.00019199,2]
[395993847,1764745838498,-635.10650512,0.00019199,2]